{"text_format":"3","workbook":"xlsx","n_sheets":4,"sheets":["Sheet1","YEAR1 ","YEAR2","YEAR3"],"not_rendered":{"images":1,"external_links":1},"read":"whole","date_system":"1900"}

{"sheet":"Sheet1","index":0,"n_rows":26,"n_cols":4,"rows_kept":26,"merged":[[7,2,7,3],[8,2,8,3],[9,1,10,1],[9,2,10,3],[11,1,11,3],[19,1,22,1]]}
[]
[]
[{"$nulls":3},"ANNEXURE B"]
[]
[]
[]
[]
[null,"SCM /Tender Ref ","BID NO.: JICS006/2026/2027"]
[null,"Request for proposals for: ……………………………………………………………………………………………………………………………………………………………………………………………………………………","APPOINTMENT OF A SERVICE PROVIDER TO RENDER PHYSICAL SECURITY SERVICES TO THE JUDICIAL INSPECTORATE FOR CORRECTIONAL SERVICES (JICS) HEAD OFFICE CENTURION FOR A PERIOD OF THIRTY (30) MONTHS"]
[null,"Name of Bidder"]
[]
[null,"ANNEXURE B: PRICING INFORMATION"]
[null,"Description","% Increment","Total cost (VAT Incl) "]
[null," Year 1 ",null,{"$f":"'[1]First Year'!G22","v":{"v":0,"d":"R 0.00"}}]
[null," Year 2",null,{"$f":"'[1]Second Year'!G22","v":{"v":0,"d":"R 0.00"}}]
[null," Year 3",null,{"$f":"'[1]Third Year'!H22","v":{"v":0,"d":"R 0.00"}}]
[null,"TOTAL BID PRICE incl. VAT and all expenses FOR ALL THREE YEARS",null,{"$f":"SUM(D14:D16)","v":{"v":0,"d":"R 0.00"}}]
[]
[null,"Confirmation by Bidder"]
[null,"Signature:"]
[]
[]
[]
[null,"Name: "]
[null,"Designation:"]
[null,"Date:"]

{"sheet":"YEAR1 ","index":1,"n_rows":16,"n_cols":5,"rows_kept":16,"merged":[[0,0,0,4],[1,0,2,0],[1,1,2,4],[3,0,3,4]]}
["Estimated Bid Price"]
["Name of Bidder"]
[]
["First Year of Service"]
["NUMBER OF SECURITY OFFICERS WORKING DAY SHIFT: MONDAY TO FRIDAY (INC WEEKEND)","UNARMED SECURITY BY GRADE","QUANTITY REQUIRED","RATE PER SECURITY GRADE (Excl VAT)/MONTH","COST BY GRADE (Excl VAT)"]
["Security Officers at the Entrance/ Exit","C",2,null,{"$f":"C6*D6","v":{"v":0,"d":"R 0.00"}}]
["NUMBER FOR SECURITY OFFICERS WORKING NIGHT SHIFT: MONDAY TO FRIDAY (INC WEEKEND)","UNARMED NIGHT GUARDS"]
["Security Officers","C",2,null,{"$f":"C8*D8","v":{"v":0,"d":"R 0.00"}}]
[]
["NUMBER FOR SECURITY OFFICERS WORKING PUBLIC HOLIDAYS","UNARMED DAY GUARDS"]
["Security Officers","C",2,null,{"$f":"C11*D11","v":{"v":0,"d":"R 0.00"}}]
[]
["TOTAL REQUIRED",null,"4 ONLY",null,{"$f":"SUM(E6:E11)","v":{"v":0,"d":"R 0.00"}}]
["15% VAT",{"$nulls":3},{"$f":"E13*0.15","v":{"v":0,"d":"R 0.00"}}]
["TOTAL (VAT INCL)",{"$nulls":3},{"$f":"E13+E14","v":{"v":0,"d":"R 0.00"}}]
["ANNUAL AMOUT",{"$nulls":3},{"$f":"E15*12","v":{"v":0,"d":"R 0.00"}}]

{"sheet":"YEAR2","index":2,"n_rows":16,"n_cols":5,"rows_kept":16,"merged":[[0,0,0,4],[1,0,2,0],[1,1,2,4],[3,0,3,4]]}
["Estimated Bid Price"]
["Name of Bidder"]
[]
["First Year of Service"]
["NUMBER OF SECURITY OFFICERS WORKING DAY SHIFT: MONDAY TO FRIDAY (INC WEEKEND)","UNARMED SECURITY BY GRADE","QUANTITY REQUIRED","RATE PER SECURITY GRADE (Excl VAT)/MONTH","COST BY GRADE (Excl VAT)"]
["Security Officers at the Entrance/ Exit","C",2,null,{"$f":"C6*D6","v":{"v":0,"d":"R 0.00"}}]
["NUMBER FOR SECURITY OFFICERS WORKING NIGHT SHIFT: MONDAY TO FRIDAY (INC WEEKEND)","UNARMED NIGHT GUARDS"]
["Security Officers","C",2,null,{"$f":"C8*D8","v":{"v":0,"d":"R 0.00"}}]
[]
["NUMBER FOR SECURITY OFFICERS WORKING PUBLIC HOLIDAYS","UNARMED DAY GUARDS"]
["Security Officers","C",2,null,{"$f":"C11*D11","v":{"v":0,"d":"R 0.00"}}]
[]
["TOTAL REQUIRED",null,"4 ONLY",null,{"$f":"SUM(E6:E11)","v":{"v":0,"d":"R 0.00"}}]
["15% VAT",{"$nulls":3},{"$f":"E13*0.15","v":{"v":0,"d":"R 0.00"}}]
["TOTAL (VAT INCL)",{"$nulls":3},{"$f":"E13+E14","v":{"v":0,"d":"R 0.00"}}]
["ANNUAL AMOUT",{"$nulls":3},{"$f":"E15*12","v":{"v":0,"d":"R 0.00"}}]

{"sheet":"YEAR3","index":3,"n_rows":16,"n_cols":5,"rows_kept":16,"merged":[[0,0,0,4],[1,0,2,0],[1,1,2,4],[3,0,3,4]]}
["Estimated Bid Price"]
["Name of Bidder"]
[]
["First Year of Service"]
["NUMBER OF SECURITY OFFICERS WORKING DAY SHIFT: MONDAY TO FRIDAY (INC WEEKEND)","UNARMED SECURITY BY GRADE","QUANTITY REQUIRED","RATE PER SECURITY GRADE (Excl VAT)/MONTH","COST BY GRADE (Excl VAT)"]
["Security Officers at the Entrance/ Exit","C",2,null,{"$f":"C6*D6","v":{"v":0,"d":"R 0.00"}}]
["NUMBER FOR SECURITY OFFICERS WORKING NIGHT SHIFT: MONDAY TO FRIDAY (INC WEEKEND)","UNARMED NIGHT GUARDS"]
["Security Officers","C",2,null,{"$f":"C8*D8","v":{"v":0,"d":"R 0.00"}}]
[]
["NUMBER FOR SECURITY OFFICERS WORKING PUBLIC HOLIDAYS","UNARMED DAY GUARDS"]
["Security Officers","C",2,null,{"$f":"C11*D11","v":{"v":0,"d":"R 0.00"}}]
[]
["TOTAL REQUIRED",null,"4 ONLY",null,{"$f":"SUM(E6:E11)","v":{"v":0,"d":"R 0.00"}}]
["15% VAT",{"$nulls":3},{"$f":"E13*0.15","v":{"v":0,"d":"R 0.00"}}]
["TOTAL (VAT INCL)",{"$nulls":3},{"$f":"E13+E14","v":{"v":0,"d":"R 0.00"}}]
["ANNUAL AMOUT",{"$nulls":3},{"$f":"E15*12","v":{"v":0,"d":"R 0.00"}}]